Cogmind - Beta 13 @@@ ROGUE MODE // 2024.06.15 @ 16:12:21 Player: Gabe+Kate4EVR Result: Destroyed by H-61 Shepherd with Heavy Assault Cannon Performance ------------- Evolutions (2) 1000 Regions Visited (5) 1000 Robots Destroyed (32) 160 Value Destroyed (494) 494 Prototype IDs (25) 500 Alien Tech Used (0) 0 Bonus (300) 300 TOTAL SCORE: 3454 Bonus ------- Aligned with FarCom 300 Cogmind --------- Core Integrity 0/550 Matter 4/300 Energy 99/100 System Corruption 0% Temperature Cool (0) Movement Core (50) Location -8/Materials Parts ------- > --- POWER (1) -------- (None) > --- PROPULSION (3) --- (None) > --- UTILITY (5) ------ Signal Interpreter Modified TNC Hacking Suite > --- WEAPON (2) ------- (None) > --- INVENTORY (5) ---- Light Deuterium Engine Improved Heat Sink Field Recycling Unit (0) Pulse Rifle Great Axe Peak State ------------ > --- POWER ------------ Light Nuclear Core > --- PROPULSION ------- Gravmag System Gravmag System Gravmag System > --- UTILITY ---------- Medium Storage Unit Signal Interpreter Modified TNC Particle Charger Transmission Jammer > --- WEAPON ----------- Makeshift Shrapnel Gun Great Axe > --- INVENTORY -------- Aluminum Leg Gravmag System Cesium-ion Thruster Improved Heat Sink Long-range Tractor Beam Field Recycling Unit Small Laser Pulse Rifle Grenade Launcher Grenade Launcher [Rating: 40] Favorites ----------- Power Light Nuclear Core Power Core Light Nuclear Core Propulsion Aluminum Leg Leg Aluminum Leg Hover Unit Gravmag System Flight Unit Flight Unit Utility Medium Storage Unit Device Particle Charger Storage Medium Storage Unit Processor Modified TNC Hackware Hacking Suite Weapon Assault Rifle Energy Gun Small Laser Ballistic Gun Assault Rifle Launcher Grenade Launcher Slashing Weapon Great Axe Build | -11 -10 -10 -10 -9 -8 ------- Run | Yrd Mat Min Exi Min Mat Slots Evolved 4 | . . . . . 4 Power . | . . . . . . Propulsion 1 | . . . . . 1 Utility 3 | . . . . . 3 Weapon . | . . . . . . Parts Attached 42 | 5 11 1 2 3 20 Power 1 | . 1 . . . . Engine . | . . . . . . Core 1 | . 1 . . . . Reactor . | . . . . . . Propulsion 17 | 2 5 . . . 10 Treads . | . . . . . . Leg 9 | 2 5 . . . 2 Wheel . | . . . . . . Hover 5 | . . . . . 5 Flight 3 | . . . . . 3 Utility 11 | 1 3 . 2 . 5 Device 4 | . 1 . . . 3 Storage 3 | 1 1 . 1 . . Processor 3 | . 1 . 1 . 1 Hackware 1 | . . . . . 1 Protection . | . . . . . . Artifact . | . . . . . . Weapon 13 | 2 2 1 . 3 5 Energy Gun 2 | . 1 . . . 1 Energy Cannon . | . . . . . . Ballistic Gun 7 | 2 1 1 . 2 1 Ballistic Cannon . | . . . . . . Launcher 2 | . . . . 1 1 Special Weapon . | . . . . . . Impact Weapon . | . . . . . . Slashing Weapon 2 | . . . . . 2 Piercing Weapon . | . . . . . . Special Melee Weapon . | . . . . . . Unidentified Prototypes . | . . . . . . Parts Lost 15 | . 1 1 . . 13 Power 1 | . . . . . 1 Propulsion 7 | . . . . . 7 Utility 2 | . . . . . 2 Weapon 5 | . 1 1 . . 3 Highest Loss Streak 9 | . 1 1 . . 9 To Critical Strikes . | . . . . . . Average Slot Usage (%) 96 | . 88 98 100 99 81 Core 12 | . 9 14 14 14 5 Leg 26 | . 28 28 28 28 13 Device 1 | . 2 . . . 11 Storage 13 | . 14 14 14 14 8 Processor 13 | . 6 14 14 14 18 Energy Gun 1 | . 8 . . . 4 Ballistic Gun 24 | . 18 25 28 27 8 Naked Turns . | . . . . . . Heaviest Build 25 | 9 20 18 18 18 25 Greatest Support 30 | 20 20 20 20 20 30 Greatest Overweight (x) 3 | 1 . . . . 3 Average Overweight (x) . | . . . . . . Largest Inventory Capacity 10 | 8 10 10 10 10 10 Average Capacity 9 | 7 9 10 10 10 9 Most Carried 10 | . 9 9 10 10 10 Average Carried 8 | . 4 8 9 9 9 Final Capacity 10 | 8 10 10 10 10 5 Final Carried 10 | . 8 9 10 9 5 Class Distribution -------------------- 85% | Scavenger-Mutant 11% | Mutant Dominant Class ---------------- Mutant | -10/Materials Scavenger-Mutant | -10/Mines Scavenger-Mutant | -10/Exiles Scavenger-Mutant | -9/Mines Scavenger-Mutant | -8/Materials Resources | -11 -10 -10 -10 -9 -8 ----------- Run | Yrd Mat Min Exi Min Mat Matter Collected 571 | 200 257 50 10 28 26 Remotely . | . . . . . . Salvage Created 468 | . 256 58 . 21 133 Parts 54 | . 23 4 . 7 20 Haulers Intercepted 1 | . . . . . 1 Recyclers Shooed . | . . . . . . Parts Field Recycled . | . . . . . . Retrieved Matter . | . . . . . . Parts Self-Destructed . | . . . . . . Prevented . | . . . . . . Kills | -11 -10 -10 -10 -9 -8 ------- Run | Yrd Mat Min Exi Min Mat Combat Hostiles Destroyed 24 | . 10 3 . 4 7 Melee 2 | . . . . . 2 Guns 15 | . 10 3 . 1 1 AOE 7 | . . . . 3 4 Classes Destroyed 7 | . 2 . . . 5 Worker 4 | . . . . . 4 Builder 1 | . . . . . 1 Tunneler 1 | . . . . . 1 Hauler 1 | . . . . . 1 Mechanic 1 | . . . . . 1 Swarmer 18 | . 6 3 . 4 5 Grunt 6 | . 4 . . . 2 Best Kill Streak 12 | . 3 3 . 4 12 Combat Bots Only 4 | . 3 3 . 4 4 Max Kills in Single Turn 5 | . 2 1 . 4 5 Gunslinging . | . . . . . . Exploded 3 | . . . . 3 3 Melee 1 | . . . . . 1 Uniques/NPCs Destroyed . | . . . . . . Combat | -11 -10 -10 -10 -9 -8 -------- Run | Yrd Mat Min Exi Min Mat Hostile Shots Fired 196 | . 45 4 . 9 138 Missed 66 | . 15 2 . 4 45 Damage Taken 1952 | . 577 16 . 41 1318 Core 755 | . 180 . . 10 565 Absorbed by Shields . | . . . . . . Core Remaining (%) 62 | 100 . . . 24 . Volleys Fired 60 | . 39 3 . 1 17 Largest 2 | . 2 2 . 2 2 Hottest 60 | . 60 60 . 54 49 Shots Fired 91 | . 63 4 . 2 22 Gun 79 | . 63 4 . 1 11 Cannon . | . . . . . . Launcher 12 | . . . . 1 11 Special . | . . . . . . Kinetic 61 | . 46 3 . 1 11 Thermal 18 | . 17 1 . . . Explosive 12 | . . . . 1 11 Electromagnetic . | . . . . . . Robot Hit Streak 12 | . 12 3 . . 3 Robot Miss Streak 6 | . 6 1 . 1 4 Penetration Max . | . . . . . . Secondary Targets . | . . . . . . Shots Hit Robots 57 | . 32 3 . . 22 Core Hits 54 | . 17 3 . 4 30 Critical Kills . | . . . . . . Critical Parts Destroyed 2 | . 1 . . . 1 Critical Strikes 2 | . 1 . . . 1 Destroy 2 | . 1 . . . 1 Melee Attacks 8 | . . . . . 8 Impact . | . . . . . . Slashing 8 | . . . . . 8 Piercing . | . . . . . . Sneak Attacks 1 | . . . . . 1 Combat Hostiles . | . . . . . . Follow-up Attacks . | . . . . . . Damage Inflicted 2096 | . 403 41 . 194 1458 Guns 652 | . 403 41 . 11 197 Cannons . | . . . . . . Explosions 1244 | . . . . 183 1061 Melee 200 | . . . . . 200 Ramming . | . . . . . . Kinetic 520 | . 271 41 . 11 197 Thermal 132 | . 132 . . . . Explosive 1244 | . . . . 183 1061 Electromagnetic . | . . . . . . Impact . | . . . . . . Slashing 200 | . . . . . 200 Piercing . | . . . . . . Highest Corruption . | . . . . . . Average Corruption . | . . . . . . Corruption Purged . | . . . . . . Corruption Blocked . | . . . . . . Overload Shots . | . . . . . . Overflow Damage 19 | . . . . 18 1 Projectiles . | . . . . . . Explosions 19 | . . . . 18 1 Melee . | . . . . . . Knockbacks . | . . . . . . Impact . | . . . . . . Kinetic . | . . . . . . Secondary . | . . . . . . Self-Inflicted Damage 246 | . 208 . . . 38 Shots 3 | . 2 . . . 1 Rammed . | . . . . . . Targets Rammed . | . . . . . . Kicked . | . . . . . . Crushed . | . . . . . . Highest Temperature 86 | . 86 6 . . 53 Average Temperature 30 | . 40 4 . . 23 Received Heat Transfer 639 | . 162 . . . 477 Siege Activations . | . . . . . . Robots Corrupted . | . . . . . . Combat Hostiles . | . . . . . . Parts Fried . | . . . . . . Impact Corruptions . | . . . . . . Robots Melted . | . . . . . . Combat Hostiles . | . . . . . . Parts Melted . | . . . . . . Heat Transferred 300 | . 300 . . . . Parts Sabotaged . | . . . . . . Parts Stolen . | . . . . . . Parts Stripped . | . . . . . . Power Chain Reactions . | . . . . . . Alert | -11 -10 -10 -10 -9 -8 ------- Run | Yrd Mat Min Exi Min Mat Peak Influence 308 | . 308 180 . 97 250 Initial 120 | . . 120 . . 37 Average 97 | . 156 174 . 13 95 Maximum Alert Level 1 | . 1 . . . 1 Low Security (%) 78 | 100 49 100 . 100 73 Level 1 21 | . 50 . . . 26 Level 2 . | . . . . . . Level 3 . | . . . . . . Level 4 . | . . . . . . Level 5 . | . . . . . . High Security . | . . . . . . Max Security . | . . . . . . Squads Dispatched 3 | . 1 . . . 2 Investigation 2 | . . . . . 2 Extermination . | . . . . . . Reinforcement 1 | . 1 . . . . Assault . | . . . . . . Garrison . | . . . . . . Intercept . | . . . . . . Searches Triggered . | . . . . . . Construction Impeded . | . . . . . . Haulers Reinforced . | . . . . . . Active Scanning Responses . | . . . . . . Cargo Convoy Interrupts . | . . . . . . Stealth | -11 -10 -10 -10 -9 -8 --------- Run | Yrd Mat Min Exi Min Mat Distress Signals 3 | . . . . . 3 Communications Jammed 12 | . . . . . 12 Distress Signals 12 | . . . . . 12 Times Spotted 46 | . 16 3 . 4 23 Peak Tracking Total 12 | . 3 2 . 4 12 Tactical Retreats 1 | . . . . . 1 Traps | -11 -10 -10 -10 -9 -8 ------- Run | Yrd Mat Min Exi Min Mat Traps Triggered 1 | . 1 . . . . Indirectly . | . . . . . . Trap Hack Attempts . | . . . . . . Triggered . | . . . . . . Disarmed . | . . . . . . Reprogrammed . | . . . . . . Reused . | . . . . . . Traps Extracted . | . . . . . . Installed . | . . . . . . Triggered . | . . . . . . Machines | -11 -10 -10 -10 -9 -8 ---------- Run | Yrd Mat Min Exi Min Mat Machines Disabled 4 | . 2 . . . 2 Max in Single Turn 2 | . 2 . . . 1 Machines Repaired . | . . . . . . Machines Dismantled . | . . . . . . Machines Sabotaged . | . . . . . . Overloaded Fab Kills . | . . . . . . Hacking | -11 -10 -10 -10 -9 -8 --------- Run | Yrd Mat Min Exi Min Mat Machines Accessed 11 | . 2 1 2 . 6 Terminals 9 | . 2 1 . . 6 Fabricators . | . . . . . . Repair Stations . | . . . . . . Recycling Units . | . . . . . . Scanalyzers . | . . . . . . Garrison Access . | . . . . . . Total Hacks 21 | . 2 4 4 . 11 Successful 12 | . 2 1 4 . 5 Failed 9 | . . 3 . . 6 Catastrophic . | . . . . . . Database Lockouts . | . . . . . . Manual 13 | . . 3 1 . 9 Terminals 17 | . 2 4 . . 11 Fabricators . | . . . . . . Repair Stations . | . . . . . . Recycling Units . | . . . . . . Scanalyzers . | . . . . . . Garrison Access . | . . . . . . Terminal Hacks 10 | . 2 1 4 . 3 Record 3 | . . . 3 . . Prototype ID Bank 1 | . . . . . 1 Branch Access Points 1 | . 1 . . . . Locate Traps 2 | . 1 . . . 1 Zone Layout 2 | . . 1 . . 1 Derelict Proto ID Bank 1 | . . . 1 . . Fabricator Hacks . | . . . . . . Repair Station Hacks . | . . . . . . Recycling Unit Hacks . | . . . . . . Scanalyzer . | . . . . . . Garrison Access Hacks . | . . . . . . Unauthorized Hacks 2 | . . . . . 2 Terminals 2 | . . . . . 2 Assimilate 2 | . . . . . 2 Fabricators . | . . . . . . Repair Stations . | . . . . . . Recycling Units . | . . . . . . Scanalyzers . | . . . . . . Garrison Access . | . . . . . . Data Cores Recovered . | . . . . . . Used . | . . . . . . Hacking Detections 4 | . . 1 . . 3 Full Trace Events 2 | . . . . . 2 Feedback Events . | . . . . . . Feedback Blocked . | . . . . . . Robot Schematics Acquired . | . . . . . . Robots Built . | . . . . . . Authchips . | . . . . . . Time . | . . . . . . Total Robot Build Rating . | . . . . . . Part Schematics Acquired . | . . . . . . Parts Built . | . . . . . . Authchips . | . . . . . . Time . | . . . . . . Total Part Build Rating . | . . . . . . Parts Repaired . | . . . . . . Time . | . . . . . . Parts Recycled . | . . . . . . Recycled Matter . | . . . . . . Retrieved Matter . | . . . . . . Retrieved Components . | . . . . . . Parts Scanalyzed . | . . . . . . Part Schematics Acquired . | . . . . . . Parts Damaged . | . . . . . . Bothacking | -11 -10 -10 -10 -9 -8 ------------ Run | Yrd Mat Min Exi Min Mat Used RIF Installer . | . . . . . . Robots Hacked . | . . . . . . Non-combat . | . . . . . . Combat . | . . . . . . Robot Hacks Applied . | . . . . . . Relay Couplers Released . | . . . . . . Fabnet Peak Effective % . | . . . . . . Robots Rewired . | . . . . . . Allies Hacked . | . . . . . . Hacks Repelled . | . . . . . . Allies | -11 -10 -10 -10 -9 -8 -------- Run | Yrd Mat Min Exi Min Mat Total Allies . | . . . . . . Largest Group . | . . . . . . Highest-Rated Group . | . . . . . . Highest-Rated Ally . | . . . . . . Total Orders . | . . . . . . Ally Attacks . | . . . . . . Total Damage . | . . . . . . Kills . | . . . . . . Allies Corrupted . | . . . . . . Allies Melted . | . . . . . . Intel | -11 -10 -10 -10 -9 -8 ------- Run | Yrd Mat Min Exi Min Mat Robot Analysis Total . | . . . . . . Derelict Logs Recovered . | . . . . . . Drone Launches . | . . . . . . Drone Recoveries . | . . . . . . Exploration | -11 -10 -10 -10 -9 -8 ------------- Run | Yrd Mat Min Exi Min Mat Turns Passed 3577 | 39 380 185 2143 381 449 Spaces Moved 1742 | 29 215 140 846 170 342 Core 35 | 6 . . . . 29 Treads . | . . . . . . Legs 1550 | 23 215 140 846 170 156 Wheels . | . . . . . . Hover 64 | . . . . . 64 Flight 93 | . . . . . 93 Fastest Speed 32 | 50 120 120 120 120 32 Average Speed 112 | 112 120 120 120 120 83 Slowest Speed 280 | 120 120 120 120 120 280 Overloaded Moves . | . . . . . . Propulsion Burnouts . | . . . . . . Robots Hopped 9 | . . . . . 9 Cave-ins Triggered . | . . . . . . Exploration Rate (%) 44 | 4 46 43 92 42 37 Regions Visited 5 Branch Regions 3 Pre-discovered Areas 1 | . . 1 . . . Known Exits Taken 1 | . 1 . . . . Unknown Exits Taken 4 | 1 . 1 1 1 . Scrap Searched 2 | . . 1 . 1 . Spaces Dug . | . . . . . . Terrain Destroyed 69 | . 27 . . 7 35 Melee . | . . . . . . Projectile . | . . . . . . AOE 69 | . 27 . . 7 35 Terrain Rammed . | . . . . . . Walls Destroyed . | . . . . . . Machines Disabled . | . . . . . . Actions | -11 -10 -10 -10 -9 -8 --------- Run | Yrd Mat Min Exi Min Mat Total 3235 | 33 270 152 1973 347 460 Wait 1332 | . 2 8 1096 162 64 Move 1720 | 28 214 139 845 169 325 Hop 8 | . . . . . 8 Pick Up 14 | . 1 1 . 5 7 Fast Attach 23 | 5 5 1 1 1 10 Attach 9 | . 1 . . 1 7 Detach 7 | . 3 . 1 . 3 Swap 10 | . 5 . 1 1 3 Drop 15 | . . . . 7 8 Fire 60 | . 39 3 . 1 17 Melee 8 | . . . . . 8 Ram . | . . . . . . Kick . | . . . . . . Crush . | . . . . . . Escape Stasis . | . . . . . . Rewire 29 | . . . 29 . . Trap . | . . . . . . Miscellaneous . | . . . . . . Route ------- -11/Scrapyard -10/Materials (discovered 4 exits: [*Mat x2] / *Min x2) -10/Mines (discovered 2 exits: [*Mat] / *Exi) -10/Exiles (discovered 2 exits: [*Min x2]) -9/Mines -8/Materials History --------- Turn | Location | Event 6 | -11/Scrapyard | Discovered new exit (range 16) 40 | -11/Scrapyard | Entered Materials 83 | -10/Materials | Identified exit to Mines 130 | -10/Materials | Discovered new exit (range 16) 289 | -10/Materials | Core integrity fell below 50% 332 | -10/Materials | Discovered new exit (range 15) 420 | -10/Materials | Entered Mines 421 | -10/Mines | Learned location of Storage (-8) 563 | -10/Mines | YI-UF0 nonchalantly dropped a Grenade Launcher on the ground 593 | -10/Mines | Deemed a non-threat by the Exiles lab entrance 594 | -10/Mines | Discovered new exit (range 5) 599 | -10/Mines | Discovered new exit (range 6) 605 | -10/Mines | Entered Exiles 635 | -10/Exiles | Met 8R-AWN 655 | -10/Exiles | Met EX-HEX 689 | -10/Exiles | Met EX-BIN 711 | -10/Exiles | Aligned with FarCom system 712 | -10/Exiles | Given EX-Vault access code 756 | -10/Exiles | Build established: Scavenger-Mutant 763 | -10/Exiles | Opened EX-Vault 786 | -10/Exiles | Found Modified TNC 810 | -10/Exiles | Warned to stay clear of 0b10 Research branches 849 | -10/Exiles | Met EX-DEC 896 | -10/Exiles | Visited The Gauntlet 1276 | -10/Exiles | Discovered new exit (range 14) 1478 | -10/Exiles | Discovered new exit (range 15) 2748 | -10/Exiles | Left Exiles lab with Modified TNC 2748 | -10/Exiles | Entered Mines 2782 | -9/Mines | A weapon hastily lodged in a ceiling crevice suddenly fell to the ground 3123 | -9/Mines | Discovered new exit (range 6) 3129 | -9/Mines | Entered Materials 3129 | -8/Materials | Evolved 4 slots: Propulsion x1, Utility x3 3505 | -8/Materials | Lost 9 parts (1p3n2u3w) 3561 | -8/Materials | Core integrity fell below 50% 3568 | -8/Materials | Core integrity fell below 20% 3578 | -8/Materials | Destroyed by H-61 Shepherd with Heavy Assault Cannon Last Messages --------------- 03487_ K-01 Serf collects debris. 03489_ U-05 Engineer builds a Wall. 03490_ K-01 Serf collects debris. 03490_ Acquired Flight Unit. 03491_ K-01 Serf collects debris. 03492_ M-13 Machinist repairs Lgt. Angular Momentum Engine. 03500_ Acquired Hacking Suite. 03504_ R-06 Scavenger inserts Lgt. Ion Engine into recycling unit. 03507_ R-06 Scavenger inserts Imp. Targeting Computer into recycling unit. 03550_ W-25 Informer sends out distress signal. 03553_ Flight Unit destroyed. 03555_ Cesium-ion Thruster destroyed. 03557_ Gravmag System destroyed. 03559_ Flight Unit destroyed. 03561_ Dropped Med. Storage Unit. 03563_ R-06 Scavenger collects Grenade Launcher. 03566_ W-25 Informer sends out distress signal. 03567_ Penetrated by Slug. 03576_ Acquired Lgt. Deuterium Engine. 03578_ Penetrated by Slug. Map ----- +----------------------------------------------------+ | ?????????????????????????????????????????????????? | | ?????????????????????????????????????????????????? | | ?????????????????????????????????????????????????? | | ?????????????????????????????????????????????????? | | ?????????????????????????????????????????????????? | | ?????????????????????????????????????????????????? | | ?????????????????????????????????????????????????? | | ?????????????????????????????????????????????????? | | ????????????????????????????a????????????????????? | | ?????????????????????????????????????????????????? | | ?????????????????????????????????????????????##### | | ?????????????????????????????????????????????# | | ?????????????????????????????????????????????# | | ?????????????????????????????????????????????# | | ?????????????????????????????????????????????# | | ?????????????????????????????????????????????# | | ??????????????????????????????#??????????????## | | ????????????????????????????? #????# ## | | ?????????????????????????? #????############ | | ?????????????????????????? w #???????????????# | | ?????????????????????????? #?????########### | | ????????????????????????? #?????# # | | ?????????????????????????# H #??????# "" """ # | | ?????????????????????????# #??????# "T """ # | | ?????????????############# #??????# "" """ # | | ?????????????# % @ #??????# # | | ?????????????# = # #??????# + | | ?????????????# # #???#### [ # | | ?????????????# # #??? # # | | ?????????????# """"" # #??? ########### | | ?????????????# """"" # #??? #????????# | | ?????????????# """"" # #???# ##????????# | | ?????????????############" #???# #????????## | | ???????????????###########g #???# #????????## | | ???????????????# ?# #???# #????????## | | ???????????????# # %##### ############ | | ???????????????# # Yg ! Y | | ???????????????# + % g g![ | | ???????????????# # = | | ???????????????# """ """ # ################## | | ???????????????? """ """?# #??? #???????# #% | | ?????????????????""" """?# #???" #?????### # %! | | ??????????????????#####??# #???" #?????#!! * * | | ?????????????????????????# #???" #?????# ! | | ?????????????????????????# #??? #?????# | | ?????????????????????????# #???" #?????# | | ?????????????????????????# +???" #?????#// | | ?????????????????????????# #???" #?????#/ | | ?????????????????????????# #????????????##### | | ?????????????????????????#a #??????????????### | +----------------------------------------------------+ Best States ------------- Heat Dissipation 39 Energy Generation 14 Energy Capacity 160 Matter Stores 300 Matter Capacity 300 Sight Range 16 Terrain Scan Density 10 Jamming Range 12 Evasion (%) 63 Targeting Accuracy 5 Particle Charging 15 Offensive Hacking 10 Item Schematics ----------------- None Robot Schematics ------------------ None Fabricated ------------ Nothing Alien Tech Used ----------------- None Achievements -------------- None Challenges ------------ None Game ------ Seed SeismicThermoelectricBoregun Manual? 0 Play Time 00:20:15 Cumulative 178.3 hours Start 2024.06.15 @ 15:50:48 End 2024.06.15 @ 16:12:21 Sessions 1 Manual Loads 0 Difficulty Rogue Special Mode None Game No. 352 Rogue 352 Adventurer 0 Explorer 0 Win Type - Total 0 Types 0/0/0/0/0/0/0/0/0 Lore% 48 Gallery% 66 Achievement% 46 Wizard Run 0 Options --------- Layout 0 ASCII 0 Keyboard 1 Movement Numpad Keybinds 0 Fullscreen 2 Font 18/X11 Map View 76x50 Zoom Use 0% Tactical HUD 1 Map Filters NONE Filters NONE Steam 1 RUN: 714dda74-3132-4eca-a2e9-b1bc68a54f69